bitfinex-derivatives/quotes_SOLF0:USTF0_20250830
["timestamp","ask_amount","ask_price","bid_price","bid_amount"]
[1756527583174,5.06,206.19,206.12,7.43]
[1756527587577,120.0,206.18,206.12,7.43]
[1756527591780,125.04,206.19,206.12,7.43]
[1756527593277,5.06,206.18,206.08,4.06964484]
[1756527593478,5.06,206.15,206.06,4.06964484]
[1756527593679,5.06,206.13,206.06,4.06964484]
[1756527595183,5.06,206.13,206.07,7.43]
[1756527603186,5.06,206.13,206.07,11.49964484]
[1756527609090,5.06,206.13,206.05,8.21541664]
[1756527609091,5.03,206.12,206.03,4.06964484]
[1756527609591,5.03,206.12,206.02,4.06964484]
[1756527609789,5.03,206.09,206.02,4.06964484]
[1756527610188,5.03,206.09,206.01,11.38964484]
[1756527610385,19.58,206.09,206.01,11.38964484]
[1756527610585,5.03,206.08,206.01,11.38964484]
[1756527611990,5.03,206.17,206.02,7.32]
[1756527612195,7.84430626,206.17,206.07,7.32]
[1756527612789,2.81430626,206.17,206.07,7.32]
[1756527612995,2.81430626,206.17,206.06,4.06964484]
[1756527612996,5.03,206.13,206.04,4.06964484]
[1756527613195,124.93,206.13,206.04,7.32]
[1756527613497,119.9,206.12,206.04,11.38964484]
[1756527614690,5.03,206.13,206.04,11.38964484]
[1756527614886,5.03,206.1,206.04,7.32]
[1756527615195,2.81430626,206.11,206.0,11.38964484]
[1756527615196,5.03,206.08,206.0,11.38964484]
[1756527620102,7.84430626,206.08,206.0,11.38964484]
[1756527620295,7.84430626,206.08,206.0,7.32]
[1756527620701,127.74430626,206.08,206.0,7.32]
[1756527622804,122.71430626,206.08,206.0,7.32]
[1756527623003,5.06,206.07,206.0,7.32]
[1756527623402,5.06,206.04,205.97,4.06964484]
[1756527623601,5.06,206.04,205.96,11.38964484]
[1756527623906,5.06,206.04,205.96,7.32]
[1756527624402,2.81430626,206.05,205.96,7.32]
[1756527624602,2.81430626,206.02,205.96,7.32]
[1756527624804,5.06,205.98,205.91,4.06964484]
[1756527625106,7.87430626,205.96,205.88,11.38964484]
[1756527625302,26.1,205.95,205.88,7.32]
[1756527626001,7.87430626,205.96,205.88,7.32]
[1756527626197,50.58,205.95,205.88,7.32]
[1756527626396,81.71430626,205.96,205.88,7.32]
[1756527628308,95.9,205.95,205.88,7.32]
[1756527628806,7.87430626,205.96,205.88,7.32]
[1756527629005,25.76,205.95,205.88,7.32]
[1756527629199,5.06,205.94,205.88,7.32]
[1756527631510,56.74,205.94,205.88,7.32]
[1756527632009,5.06,205.94,205.88,7.32]
[1756527632517,32.24,205.94,205.88,7.32]
[1756527633414,57.3,205.94,205.88,7.32]
[1756527633711,5.06,205.94,205.88,7.32]
[1756527636315,101.12,205.94,205.88,7.32]
[1756527637623,5.06,205.94,205.88,7.32]
[1756527639113,27.18536809,205.95,205.88,7.32]
[1756527639114,0.84536809,205.95,205.88,7.32]
[1756527639313,326.14,206.05,205.83,2.81430626]
[1756527639314,26.51430626,206.0,205.9,7.51]
[1756527639522,27.35954089,206.0,205.9,7.51]
[1756527639813,60.85954089,206.0,205.9,7.51]
[1756527640023,0.84523463,206.0,205.9,7.51]
[1756527640619,326.14,206.05,205.9,7.51]
[1756527640620,5.03,206.04,205.93,7.51]
[1756527640812,5.03,206.04,205.96,7.51]
[1756527642209,0.84498834,206.06,205.97,2.81430626]
[1756527642409,5.03,206.19,206.02,7.51]
[1756527642617,7.84430626,206.15,206.04,2.81430626]
[1756527642811,8.68888446,206.15,206.05,7.51]
[1756527643321,5.03,206.14,206.05,7.51]
[1756527646626,3.65888446,206.15,206.05,7.51]
[1756527646826,5.03,206.14,206.05,7.51]
[1756527647521,2.81430626,206.12,205.99,7.51]
[1756527647717,5.03,206.11,205.99,7.51]
[1756527649324,7.84430626,206.09,205.99,7.51]
[1756527650025,7.84430626,206.14,206.05,7.51]
[1756527650428,2.81430626,206.14,206.05,7.51]
[1756527650727,0.8445782,206.15,206.05,7.51]
[1756527650728,7.84430626,206.11,206.05,7.51]
[1756527651117,7.84430626,206.11,206.0,7.51]
[1756527651319,5.03,206.1,206.0,7.51]
[1756527652123,13.3,206.09,206.0,7.51]
[1756527655038,5.03,206.08,206.0,7.51]
[1756527655436,5.03,206.07,206.0,7.51]
[1756527656333,2.81430626,206.05,206.0,7.51]
[1756527656540,5.03,206.04,205.95,7.51]
[1756527660544,2.81430626,206.09,205.98,7.51]
[1756527660739,32.71,206.1,206.01,7.51]
[1756527664747,5.03,206.08,206.01,7.51]
[1756527675450,5.05,206.12,206.01,7.51]
[1756527675751,32.87430626,206.11,206.01,7.51]
[1756527676649,5.05,206.1,206.01,7.51]
[1756527677455,5.05,206.07,206.01,7.51]
[1756527678351,2.81430626,206.08,205.98,7.68]
[1756527678557,5.05,206.07,205.98,7.68]
[1756527678753,2.81430626,206.05,205.98,7.68]
[1756527679654,7.86430626,206.05,205.98,7.68]
[1756527680852,5.05,206.04,205.98,7.68]
[1756527681750,2.81430626,206.02,205.98,7.68]
[1756527682051,2.81430626,206.02,205.94,4.05767771]
[1756527682257,7.86430626,205.99,205.92,11.73767771]
[1756527682454,7.86430626,205.99,205.92,7.68]
[1756527685356,7.86430626,205.96,205.92,7.68]
[1756527688859,2.81430626,205.96,205.92,7.68]
[1756527689060,5.05,205.95,205.88,11.73767771]
[1756527689265,5.05,205.92,205.87,7.68]
[1756527689460,5.05,205.92,205.86,7.68]
[1756527690263,2.81430626,205.93,205.86,7.68]
[1756527694663,7.86430626,205.93,205.86,7.68]
[1756527695255,54.1,205.92,205.86,7.68]
[1756527695966,77.08,205.92,205.86,7.68]
[1756527697268,2.81430626,205.9,205.86,7.68]
[1756527697466,5.06,205.89,205.86,7.68]
[1756527697863,2.81430626,205.9,205.8,4.05767771]
[1756527698069,2.81430626,205.9,205.81,7.25]
[1756527701970,7.87430626,205.9,205.81,7.25]
[1756527702271,2.81430626,205.87,205.81,7.25]
[1756527702460,7.87430626,205.87,205.81,7.25]
[1756527702660,7.87430626,205.87,205.75,6.87198397]
[1756527702661,5.06,205.86,205.76,7.25]
[1756527703066,5.06,205.83,205.76,7.25]
[1756527703670,17.04,205.84,205.76,7.25]
[1756527703864,19.85430626,205.84,205.76,7.25]
[1756527704265,2.81430626,205.84,205.76,7.25]
[1756527705573,88.91613469,205.92,205.72,6.87198397]
[1756527705574,5.06,205.89,205.78,7.25]
[1756527705873,5.06,205.89,205.8,2.81430626]
[1756527706265,5.06,205.89,205.81,7.25]
[1756527708375,7.87430626,205.87,205.81,7.25]
[1756527709575,2.81430626,205.84,205.73,7.25]
[1756527709873,5.06,205.83,205.73,7.25]
[1756527711777,24.0,205.83,205.73,7.25]
[1756527711980,5.06,205.83,205.73,7.25]
[1756527712181,53.18,205.83,205.73,7.25]
[1756527712680,75.84,205.87,205.74,2.81430626]
[1756527712879,2.81430626,205.86,205.75,7.25]
[1756527713981,5.06,205.85,205.75,7.25]
[1756527714280,5.06,205.82,205.75,7.25]
[1756527715082,5.09220411,205.81,205.77,7.25]
[1756527717586,0.03220411,205.81,205.77,7.25]
[1756527718393,0.03220411,205.81,205.76,0.03266833]
[1756527718582,0.03220411,205.81,205.77,7.25]
[1756527718786,5.06,205.8,205.77,7.25]
[1756527718987,0.03220411,205.81,205.77,7.25]
[1756527719389,0.03220411,205.81,205.76,0.03266833]
[1756527719591,0.03220411,205.81,205.77,7.25]
[1756527719792,5.09220411,205.81,205.77,7.25]
[1756527720990,5.06,205.8,205.77,7.25]
[1756527721192,5.06,205.8,205.76,0.03266833]
[1756527721391,0.03220411,205.81,205.76,0.03266833]
[1756527721589,2.81430626,205.8,205.76,0.03266833]
[1756527721790,5.06,205.79,205.76,0.03266833]
[1756527723995,2.81430626,205.8,205.76,0.03266833]
[1756527724197,5.06,205.79,205.76,0.03266833]
[1756527724391,2.81430626,205.8,205.76,0.03266833]
[1756527724591,5.06,205.79,205.76,0.03266833]
[1756527725186,2.81430626,205.8,205.76,0.03266833]
[1756527725496,5.06,205.79,205.76,0.03266833]
[1756527725696,2.81430626,205.8,205.76,0.03266833]
[1756527726794,5.07,205.79,205.76,0.03266833]
[1756527726994,2.81430626,205.8,205.76,0.03266833]
[1756527727195,5.07,205.79,205.76,0.03266833]
[1756527727690,2.81430626,205.8,205.76,0.03266833]
[1756527727891,5.07,205.79,205.76,0.03266833]
[1756527728298,2.81430626,205.8,205.76,0.03266833]
[1756527728493,5.07,205.8,205.76,7.66266833]
[1756527729200,0.03220411,205.81,205.76,7.66266833]
[1756527729496,0.03220411,205.81,205.76,0.03266833]
[1756527729997,5.07,205.8,205.76,0.03266833]
[1756527730195,0.03220411,205.81,205.76,0.03266833]
[1756527730396,5.07,205.8,205.76,0.03266833]
[1756527730697,0.03220411,205.81,205.76,0.03266833]
[1756527730892,5.07,205.8,205.76,0.03266833]
[1756527731101,0.03220411,205.81,205.76,0.03266833]
[1756527731300,5.07,205.8,205.76,0.03266833]
[1756527731695,0.03220411,205.81,205.76,0.03266833]
[1756527731901,5.07,205.8,205.76,0.03266833]
[1756527732293,0.03220411,205.81,205.76,0.03266833]
[1756527732497,0.03220411,205.81,205.77,7.63]
[1756527732699,0.03220411,205.81,205.76,0.03266833]
[1756527733606,0.03220411,205.81,205.77,7.63]
[1756527733801,0.03220411,205.81,205.76,0.03266833]
[1756527734298,0.03220411,205.81,205.77,7.63]
[1756527734500,0.03220411,205.81,205.76,0.03266833]
[1756527734706,0.03220411,205.81,205.77,7.63]
[1756527735102,0.03220411,205.81,205.76,0.03266833]
[1756527735301,0.03220411,205.81,205.77,7.63]
[1756527735603,0.03220411,205.81,205.76,0.03266833]
[1756527735804,0.03220411,205.81,205.77,7.63]
[1756527736108,0.03220411,205.81,205.76,0.03266833]
[1756527736402,0.03220411,205.81,205.77,7.63]
[1756527736603,0.03220411,205.81,205.76,0.03266833]
[1756527736800,0.03220411,205.81,205.77,7.63]
[1756527737000,0.03220411,205.81,205.76,0.03266833]
[1756527737200,0.03220411,205.81,205.77,7.63]
[1756527737402,0.03220411,205.81,205.76,0.03266833]
[1756527737698,0.03220411,205.81,205.77,7.63]
[1756527737903,0.03220411,205.81,205.76,0.03266833]
[1756527738303,0.03220411,205.81,205.77,7.63]
[1756527738506,5.10220411,205.81,205.77,7.63]
[1756527739999,5.10220411,205.81,205.76,0.03266833]
[1756527740206,5.10220411,205.81,205.77,7.63]
[1756527740803,5.10220411,205.81,205.76,0.03266833]
[1756527741001,5.10220411,205.81,205.77,7.63]
[1756527743111,5.10220411,205.81,205.76,0.03266833]
[1756527743508,5.10220411,205.81,205.77,7.63]
[1756527743709,5.10220411,205.81,205.76,0.03266833]
[1756527743909,5.10220411,205.81,205.77,7.63]
[1756527745712,0.03220411,205.81,205.77,7.63]
[1756527745912,5.08,205.8,205.77,7.63]
[1756527747602,0.03220411,205.81,205.76,0.03266833]
[1756527747909,5.11220411,205.81,205.77,7.63]
[1756527749108,5.11220411,205.81,205.76,0.03266833]
[1756527749409,5.11220411,205.81,205.77,7.63]
[1756527754216,5.08,205.8,205.77,7.63]
[1756527754515,0.03220411,205.81,205.76,0.03266833]
[1756527754716,5.08,205.8,205.76,0.03266833]
[1756527755116,2.84651037,205.81,205.77,7.63]
[1756527755117,0.03220411,205.81,205.77,7.63]
[1756527755318,0.03220411,205.81,205.78,4.06018975]
[1756527755519,0.03220411,205.81,205.79,13.03111038]
[1756527755815,0.03220411,205.81,205.8,7.63]
[1756527757314,0.03220411,205.81,205.8,10.92430626]
[1756527757514,5.09,205.94,205.84,7.27]
[1756527757812,5.09,205.94,205.87,7.27]
[1756527758716,5.09,205.94,205.88,0.0341754]
[1756527765721,112.99430626,205.96,205.88,0.0341754]
[1756527765722,5.09,205.92,205.88,0.0341754]
[1756527766024,5.09,205.89,205.88,0.0341754]
[1756527768027,5.57,205.89,205.78,4.08627722]
[1756527768225,2.81430626,205.83,205.77,7.27]
[1756527768826,5.09,205.82,205.74,7.27]
[1756527769617,2.81430626,205.8,205.74,7.27]
[1756527769827,7.90430626,205.8,205.74,7.27]
[1756527770224,7.90430626,205.8,205.71,11.35627722]
[1756527770528,7.90430626,205.8,205.71,7.27]
[1756527770924,7.90430626,205.77,205.71,7.27]
[1756527772323,7.90430626,205.77,205.67,7.27]
[1756527773720,2.81430626,205.77,205.67,6.90058348]
[1756527773926,2.81430626,205.83,205.71,7.27]
[1756527774228,5.09,205.85,205.76,2.81430626]
[1756527774532,2.81430626,205.87,205.77,7.27]
[1756527776132,326.5,205.88,205.77,4.08627722]
[1756527776429,326.5,205.88,205.8,7.27]
[1756527780235,5.09,205.87,205.8,7.27]
[1756527780430,7.90430626,205.87,205.77,4.08627722]
[1756527780627,5.09,205.86,205.76,14.17058348]
[1756527780828,2.81430626,205.87,205.76,11.35627722]
[1756527781033,5.09,205.83,205.76,7.27]
[1756527781334,5.09,205.8,205.71,7.27]
[1756527781533,5.09,205.8,205.71,11.35627722]
[1756527782126,5.09,205.8,205.71,7.27]
[1756527782328,5.09,205.8,205.71,11.35627722]
[1756527782835,120.0,205.83,205.73,10.08430626]
[1756527786336,2.81430626,205.82,205.73,10.08430626]
[1756527786735,2.81430626,205.82,205.73,7.27]
[1756527786933,5.1,205.81,205.7,4.08627722]
[1756527787127,2.81430626,205.79,205.7,4.08627722]
[1756527787436,5.1,205.78,205.7,4.08627722]
[1756527787736,5.1,205.78,205.69,11.51627722]
[1756527789633,2.81430626,205.76,205.69,7.43]
[1756527789833,5.1,205.75,205.69,7.43]
[1756527790931,2.81430626,205.79,205.69,7.43]
[1756527791136,2.81430626,205.82,205.71,2.81430626]
[1756527791335,5.1,205.84,205.71,2.81430626]
[1756527791336,30.64,205.84,205.73,7.43]
[1756527792231,5.1,205.84,205.75,7.43]
[1756527796239,2.81430626,205.82,205.75,7.43]
[1756527796433,5.1,205.81,205.75,7.43]
[1756527797138,2.81430626,205.77,205.71,7.43]
[1756527799940,5.1,205.73,205.67,7.43]
[1756527801641,5.1,205.73,205.63,11.51627722]
[1756527802145,2.81430626,205.71,205.63,11.51627722]
[1756527802339,2.81430626,205.71,205.63,7.43]
[1756527807342,2.81430626,205.73,205.63,10.24430626]
[1756527807548,2.81430626,205.76,205.64,11.51627722]
[1756527807742,2.81430626,205.76,205.65,7.43]
[1756527808047,2.81430626,205.76,205.66,7.43]
[1756527811150,2.81430626,205.76,205.67,7.43]
[1756527813864,7.91430626,205.73,205.67,7.43]
[1756527814562,7.91430626,205.73,205.64,4.08627722]
[1756527814761,7.91430626,205.73,205.63,7.43]
[1756527814762,7.91430626,205.7,205.63,11.51627722]
[1756527814963,7.91430626,205.7,205.63,7.43]
[1756527815361,2.81430626,205.73,205.63,7.43]
[1756527815660,2.81430626,205.73,205.64,7.43]
[1756527816060,5.1,205.72,205.64,7.43]
[1756527818154,2.81430626,205.73,205.64,7.43]
[1756527818361,7.89430626,205.76,205.65,4.08627722]
[1756527818555,15.55430626,205.76,205.66,7.14]
[1756527820856,7.89430626,205.76,205.66,7.14]
[1756527822064,7.89430626,205.76,205.66,11.22627722]
[1756527823867,7.89430626,205.76,205.64,2.81430626]
[1756527823868,2.81430626,205.79,205.67,6.90058348]
[1756527824066,2.81430626,205.79,205.68,11.22627722]
[1756527824367,2.81430626,205.79,205.69,7.14]
[1756527829968,20.84,205.8,205.69,7.14]
[1756527830271,20.84,205.8,205.71,7.14]
[1756527830272,2.81430626,205.79,205.71,7.14]
[1756527830460,2.81430626,205.79,205.71,11.22627722]
[1756527831170,2.81430626,205.79,205.71,7.14]
[1756527831372,2.81430626,205.79,205.71,11.22627722]
[1756527832169,2.81430626,205.82,205.72,7.14]
[1756527832369,2.81430626,205.82,205.73,11.22627722]
[1756527832563,2.81430626,205.82,205.74,7.14]
[1756527834672,331.58,205.88,205.76,4.08627722]
[1756527834875,2.81430626,205.87,205.78,7.14]
[1756527838475,2.81430626,205.87,205.79,7.14]
[1756527839177,331.58,205.88,205.79,7.14]
[1756527839178,331.58,205.88,205.79,9.95430626]
[1756527839374,331.58,205.88,205.8,7.14]
[1756527841776,326.5,205.88,205.8,7.14]
[1756527842871,331.58,205.88,205.8,7.14]
[1756527843276,5.08,205.86,205.8,7.14]
[1756527844886,446.4,205.88,205.8,7.14]
[1756527845088,119.9,205.88,205.83,7.14]
[1756527845293,119.9,205.88,205.82,9.95430626]
[1756527848185,119.9,205.88,205.82,7.14]
[1756527848387,125.01,205.88,205.82,7.14]
[1756527849087,5.11,205.87,205.79,10.58430626]
[1756527851088,5.11,205.87,205.8,7.77]
[1756527851396,119.9,205.88,205.8,7.77]
[1756527851591,5.11,205.91,205.83,7.77]
[1756527851886,5.11,205.95,205.86,7.77]
[1756527855796,5.11,205.95,205.87,7.77]
[1756527855993,5.95538862,205.98,205.89,7.77]
[1756527858700,5.1,205.97,205.89,7.77]
[1756527860595,0.84538862,205.98,205.86,7.77]
[1756527860799,5.1,205.97,205.86,7.77]
[1756527861098,0.84538862,205.98,205.86,7.77]
[1756527861299,5.1,205.97,205.86,7.77]
[1756527865000,3.65969488,205.98,205.86,7.77]
[1756527865300,5.1,205.97,205.86,7.77]
[1756527866204,5.1,205.97,205.87,7.77]
[1756527866499,5.1,205.97,205.88,2.81430626]
[1756527867000,5.1,205.97,205.87,7.77]
[1756527867202,3.65969488,205.98,205.87,7.77]
[1756527867399,2.81430626,205.95,205.87,7.77]
[1756527867598,124.92,205.94,205.87,7.77]
[1756527869203,119.82,205.94,205.87,7.77]
[1756527869504,5.1,205.93,205.87,7.77]
[1756527870792,5.1,205.97,205.87,7.77]
[1756527870996,5.1,205.97,205.89,7.77]
[1756527871199,326.56,206.0,205.92,7.77]
[1756527871394,446.38,206.0,205.92,7.77]
[1756527877502,5.06,205.99,205.92,7.77]
[1756527878208,124.84,205.99,205.92,10.58430626]
[1756527880503,5.06,205.99,205.92,10.58430626]
[1756527880711,124.84,205.99,205.92,10.58430626]
[1756527882408,124.84,205.99,205.93,7.28]
[1756527883711,124.84,205.99,205.92,2.81430626]
[1756527886115,124.84,205.99,205.92,10.09430626]
[1756527887415,119.78,205.99,205.91,4.08627722]
[1756527887620,5.06,205.98,205.91,4.08627722]
[1756527887919,5.06,205.98,205.9,4.08627722]
[1756527888314,5.06,205.98,205.91,4.08627722]
[1756527889120,5.06,205.98,205.9,4.08627722]
[1756527889320,5.06,206.13,205.98,7.28]
[1756527889520,5.06,206.19,206.09,11.35397553]
[1756527889820,2.81430626,206.22,206.09,11.35397553]
[1756527889821,21.59430626,206.22,206.1,4.58890896]
[1756527890023,5.06,206.21,206.13,4.07397553]
[1756527890218,5.06,206.21,206.14,8.66288449]
[1756527890416,5.06,206.21,206.15,9.16380344]
[1756527890612,5.06,206.21,206.13,4.07397553]
[1756527890613,5.06,206.21,206.16,9.16380344]
[1756527890818,5.06,206.2,206.17,4.58890896]
[1756527891118,5.06,206.21,206.18,4.58890896]
[1756527891321,36.22,206.22,206.19,4.58890896]
[1756527891522,5.06,206.21,206.2,4.58890896]
[1756527891722,5.06,206.21,206.11,4.07397553]
[1756527892024,2.81430626,206.19,206.12,9.40900169]
[1756527892221,0.47,206.18,206.08,10.09430626]
[1756527892621,0.47,206.18,206.09,4.5662315]
[1756527892820,0.47,206.18,206.1,4.5662315]
[1756527893019,0.47,206.18,206.11,4.5662315]
[1756527893221,0.47,206.18,206.08,10.09430626]
[1756527893425,0.47,206.18,206.09,4.56381996]
[1756527893623,0.47,206.18,206.1,4.56381996]
[1756527893822,0.47,206.18,206.11,4.56381996]
[1756527894022,0.47,206.18,206.08,10.09430626]
[1756527894324,0.47,206.18,206.09,4.56381996]
[1756527894524,0.47,206.18,206.1,4.56381996]
[1756527894725,0.47,206.18,206.11,14.65812622]
[1756527894922,0.47,206.18,206.12,4.56381996]
[1756527895124,0.47,206.18,206.14,7.28]
[1756527897432,0.47,206.18,206.11,2.81430626]
[1756527897633,0.47,206.18,206.09,7.28]
[1756527897935,0.47,206.18,206.1,4.55518179]
[1756527898134,0.47,206.18,206.11,4.55518179]
[1756527898334,0.47,206.18,206.09,7.28]
[1756527898534,0.47,206.18,206.1,4.55356709]
[1756527898738,0.47,206.18,206.09,7.28]
[1756527899032,0.47,206.18,206.1,4.55356709]
[1756527899230,0.47,206.18,206.11,4.55194768]
[1756527899430,0.47,206.18,206.09,7.28]
[1756527899635,0.47,206.18,206.1,4.55194768]
[1756527899830,0.47,206.18,206.11,7.36625394]
[1756527900025,3.28430626,206.22,206.12,11.83194768]
[1756527900329,3.28430626,206.22,206.13,4.55194768]
[1756527900534,3.28430626,206.22,206.12,7.28]
[1756527900734,3.28430626,206.22,206.13,4.55161973]
[1756527900930,3.28430626,206.22,206.14,4.55161973]
[1756527901131,3.28430626,206.22,206.12,7.28]
[1756527901331,3.28430626,206.22,206.13,4.55142565]
[1756527901530,3.28430626,206.22,206.14,4.55142565]
[1756527901732,3.28430626,206.22,206.12,7.28]
[1756527902027,3.28430626,206.22,206.13,4.54907267]
[1756527902232,60.62430157,206.23,206.15,7.28]
[1756527902435,59.78,206.23,206.16,4.54671726]
[1756527902732,59.78,206.23,206.17,4.54652294]
[1756527902935,59.78,206.23,206.15,7.28]
[1756527903136,59.78,206.23,206.16,4.54647396]
[1756527903326,59.78,206.23,206.15,7.28]
[1756527903531,59.78,206.23,206.16,4.54360035]
[1756527903731,59.78,206.23,206.17,4.81664399]
[1756527904032,60.25,206.23,206.18,12.09664399]
[1756527904236,60.25,206.23,206.19,4.81664399]
[1756527904434,59.78,206.23,206.2,4.81664399]
[1756527904633,0.47,206.22,206.21,4.81664399]
[1756527905029,59.78,206.23,206.21,4.81664399]
[1756527905225,59.78,206.23,206.22,4.81664399]
[1756527905531,59.78,206.23,206.22,4.66908058]
[1756527907434,0.48,206.26,206.22,12.50908058]
[1756527907634,111.59996411,206.27,206.23,4.66908058]
[1756527907830,18.90251835,206.68,206.24,12.50908058]
[1756527907831,0.48,206.31,206.24,12.50908058]
[1756527908032,0.48,206.31,206.25,4.66908058]
[1756527908330,0.48,206.32,206.26,4.66908058]
[1756527908535,0.48,206.32,206.27,4.66908058]
[1756527908736,0.48,206.32,206.24,7.84]
[1756527908930,0.48,206.32,206.25,4.66190741]
[1756527909130,0.48,206.32,206.26,4.66190741]
[1756527909431,125.91814719,206.33,206.27,4.66190741]
[1756527909730,125.91814719,206.33,206.24,7.84]
[1756527909935,0.48,206.32,206.25,4.65885702]
[1756527910127,0.48,206.32,206.26,4.65885702]
[1756527910324,125.43814719,206.33,206.27,4.65885702]
[1756527910536,0.48,206.32,206.24,7.84]
[1756527910737,0.48,206.32,206.25,4.65622054]
[1756527910931,0.48,206.32,206.26,4.65622054]
[1756527911235,125.91814719,206.33,206.27,4.65622054]
[1756527911435,0.48,206.32,206.24,7.84]
[1756527911636,0.48,206.32,206.25,4.65328366]
[1756527911836,0.48,206.32,206.26,4.65328366]
[1756527912032,125.91814719,206.33,206.27,4.65328366]
[1756527912338,0.48,206.3,206.2,7.84]
[1756527912526,0.48,206.3,206.21,4.65201373]
[1756527912726,0.48,206.3,206.22,4.65201373]
[1756527912928,0.48,206.3,206.23,4.65201373]
[1756527913130,0.48,206.3,206.24,4.65201373]
[1756527913331,2.81430626,206.31,206.25,4.65201373]
[1756527913527,2.81430626,206.31,206.2,7.84]
[1756527913528,0.48,206.3,206.2,7.84]
[1756527913727,0.48,206.3,206.21,4.58743546]
[1756527913937,0.48,206.3,206.22,4.58743546]
[1756527914138,0.48,206.3,206.23,4.58743546]
[1756527914435,0.48,206.3,206.24,4.58743546]
[1756527914631,3.29430626,206.31,206.25,4.58743546]
[1756527914828,3.29430626,206.31,206.23,7.84]
[1756527915133,3.29430626,206.31,206.24,4.58741804]
[1756527915437,3.29430626,206.31,206.25,4.58741804]
[1756527915737,2.81430626,206.31,206.26,4.58741804]
[1756527916036,0.48,206.3,206.23,7.84]
[1756527916437,121.52,206.31,206.25,7.84]
[1756527916639,121.52,206.31,206.27,7.84]
[1756527917435,121.52,206.31,206.23,7.84]
[1756527917636,121.52,206.31,206.24,4.58677501]
[1756527917837,121.52,206.31,206.25,4.58677501]
[1756527918031,121.52,206.31,206.27,7.84]
[1756527919142,121.52,206.31,206.23,7.84]
[1756527919343,121.52,206.31,206.24,4.5883622]
[1756527919540,121.52,206.31,206.25,4.5883622]
[1756527919743,122.02,206.31,206.26,12.4283622]
[1756527920043,122.02,206.31,206.27,4.5883622]
[1756527920345,122.02,206.31,206.28,4.58978858]
[1756527920542,122.02,206.31,206.26,7.84]
[1756527920745,0.5,206.3,206.27,4.58975005]
[1756527920945,0.5,206.3,206.28,4.58988775]
[1756527921139,0.5,206.3,206.23,7.84]
[1756527921342,0.5,206.3,206.24,4.58970809]
[1756527921541,0.5,206.3,206.26,7.84]
[1756527921842,0.5,206.3,206.27,4.58970809]
[1756527922037,0.5,206.3,206.28,4.58970809]
[1756527922235,0.5,206.3,206.26,7.84]
[1756527922443,0.5,206.3,206.27,4.59001888]
[1756527922645,0.5,206.3,206.28,4.59001888]
[1756527922842,0.5,206.3,206.26,7.84]
[1756527923037,0.5,206.3,206.27,4.59040895]
[1756527923243,0.5,206.3,206.28,4.59040895]
[1756527923545,0.5,206.3,206.26,7.84]
[1756527923747,0.84384093,206.33,206.27,4.59059506]
[1756527923947,121.22,206.32,206.29,7.84]
[1756527924143,121.22,206.32,206.22,2.81430626]
[1756527924144,0.5,206.31,206.2,2.81430626]
[1756527924451,0.5,206.31,206.22,7.84]
[1756527924642,0.5,206.31,206.23,9.17386563]
[1756527924947,0.5,206.31,206.24,4.5910101]
[1756527925146,0.5,206.31,206.25,4.5910101]
[1756527925348,125.37813696,206.32,206.26,4.5910101]
[1756527925648,0.5,206.31,206.27,4.5910101]
[1756527925844,0.5,206.31,206.21,7.84]